[Event "Titled Tuesday Blitz March 15 Late 2022"]
[White "Sztokbant, Bernardo Vainzoff"]
[Black "Weber, Samuel"]
[WhiteFideId "2115956"]
[BlackFideId "12924008"]
[WhiteElo "2237"]
[BlackElo "2215"]
[Result "1/2-1/2"]
[Round "10"]
[TimeControl "180+1"]
[Date "2022.03.15"]
[WhiteClock "0:00:18"]
[BlackClock "0:00:06"]

1. c4 {[%clk 0:03:00]}  Nf6 {[%clk 0:02:57]} 2. Nf3 {[%clk 0:03:00]}  e6 {[%clk 0:02:55]} 3. g3 {[%clk 0:03:00]}  a6 {[%clk 0:02:56]} 4. Bg2 {[%clk 0:03:01]}  b5 {[%clk 0:02:56]} 5. b3 {[%clk 0:03:00]}  Bb7 {[%clk 0:02:56]} 6. O-O {[%clk 0:03:00]}  c5 {[%clk 0:02:56]} 7. Bb2 {[%clk 0:02:59]}  Be7 {[%clk 0:02:56]} 8. d4 {[%clk 0:02:50]}  cxd4 {[%clk 0:02:54]} 9. cxb5 {[%clk 0:02:49]}  axb5 {[%clk 0:02:48]} 10. Nxd4 {[%clk 0:02:48]}  Bxg2 {[%clk 0:02:48]} 11. Kxg2 {[%clk 0:02:48]}  Qb6 {[%clk 0:02:48]} 12. Nc3 {[%clk 0:02:47]}  b4 {[%clk 0:02:46]} 13. Na4 {[%clk 0:02:42]}  Qb7+ {[%clk 0:02:46]} 14. Kg1 {[%clk 0:02:41]}  O-O {[%clk 0:02:42]} 15. Rc1 {[%clk 0:02:41]}  Na6 {[%clk 0:02:31]} 16. Qd3 {[%clk 0:02:35]}  h5 {[%clk 0:02:19]} 17. Rc2 {[%clk 0:02:33]}  h4 {[%clk 0:02:18]} 18. Rfc1 {[%clk 0:02:34]}  h3 {[%clk 0:02:14]} 19. Qf3 {[%clk 0:02:27]}  d5 {[%clk 0:01:21]} 20. Nc6 {[%clk 0:02:23]}  Ne4 {[%clk 0:01:16]} 21. Nb6 {[%clk 0:02:06]}  Bg5 {[%clk 0:01:13]} 22. Nxa8 {[%clk 0:01:57]}  Bxc1 {[%clk 0:01:08]} 23. Rxc1 {[%clk 0:01:58]}  Rxa8 {[%clk 0:01:05]} 24. Qg4 {[%clk 0:01:58]}  f5 {[%clk 0:00:57]} 25. Qxh3 {[%clk 0:01:33]}  Nac5 {[%clk 0:00:48]} 26. Ne5 {[%clk 0:01:12]}  Rxa2 {[%clk 0:00:35]} 27. Rc2 {[%clk 0:01:12]}  Qa7 {[%clk 0:00:22]} 28. Qh5 {[%clk 0:01:01]}  Rxb2 {[%clk 0:00:12]} 29. Qe8+ {[%clk 0:00:59]}  Kh7 {[%clk 0:00:12]} 30. Rxb2 {[%clk 0:00:39]}  Qa1+ {[%clk 0:00:11]} 31. Kg2 {[%clk 0:00:39]}  Qxb2 {[%clk 0:00:10]} 32. Qg6+ {[%clk 0:00:32]}  Kg8 {[%clk 0:00:06]} 33. Qf7+ {[%clk 0:00:22]}  Kh7 {[%clk 0:00:06]} 34. Qg6+ {[%clk 0:00:18]}  Kg8 {[%clk 0:00:06]} 35. Qf7+ {[%clk 0:00:17]}  Kh7 {[%clk 0:00:06]} 36. Qg6+ {[%clk 0:00:18]} 1/2-1/2


[Site "https://www.chess.com"]

[Event "Titled Tuesday Blitz March 15 Late 2022"]
[White "Tabatabaei, M. Amin"]
[Black "Svane, Rasmus"]
[WhiteFideId "12521213"]
[BlackFideId "4657101"]
[WhiteElo "2544"]
[BlackElo "2645"]
[Result "1-0"]
[Round "10"]
[TimeControl "180+1"]
[Date "2022.03.15"]
[WhiteClock "0:00:03"]
[BlackClock "0:00:26"]

1. d4 {[%clk 0:02:46]}  Nf6 {[%clk 0:02:59]} 2. Nf3 {[%clk 0:02:47]}  d5 {[%clk 0:02:58]} 3. c3 {[%clk 0:02:47]}  e6 {[%clk 0:02:55]} 4. Bf4 {[%clk 0:02:47]}  Bd6 {[%clk 0:02:56]} 5. e3 {[%clk 0:02:47]}  O-O {[%clk 0:02:56]} 6. Nbd2 {[%clk 0:02:48]}  c5 {[%clk 0:02:53]} 7. Ne5 {[%clk 0:02:48]}  Nc6 {[%clk 0:02:51]} 8. Bd3 {[%clk 0:02:46]}  Qc7 {[%clk 0:02:52]} 9. Ndf3 {[%clk 0:02:46]}  Ne7 {[%clk 0:02:52]} 10. h4 {[%clk 0:02:32]}  b6 {[%clk 0:02:51]} 11. h5 {[%clk 0:02:31]}  Bb7 {[%clk 0:02:47]} 12. h6 {[%clk 0:02:30]}  g6 {[%clk 0:02:47]} 13. Ng5 {[%clk 0:02:24]}  Ne4 {[%clk 0:02:41]} 14. Qf3 {[%clk 0:01:58]}  cxd4 {[%clk 0:02:10]} 15. exd4 {[%clk 0:01:44]}  Nxg5 {[%clk 0:02:02]} 16. Bxg5 {[%clk 0:01:45]}  Bxe5 {[%clk 0:02:03]} 17. Bxe7 {[%clk 0:01:38]}  Qxe7 {[%clk 0:02:03]} 18. dxe5 {[%clk 0:01:38]}  d4 {[%clk 0:02:03]} 19. Be4 {[%clk 0:01:28]}  Bxe4 {[%clk 0:02:04]} 20. Qxe4 {[%clk 0:01:29]}  dxc3 {[%clk 0:02:04]} 21. bxc3 {[%clk 0:01:30]}  Rac8 {[%clk 0:02:05]} 22. Qf4 {[%clk 0:01:22]}  Rxc3 {[%clk 0:01:57]} 23. O-O {[%clk 0:01:23]}  Rfc8 {[%clk 0:01:53]} 24. Rad1 {[%clk 0:01:21]}  R3c4 {[%clk 0:01:51]} 25. Qf3 {[%clk 0:01:15]}  Qg5 {[%clk 0:01:39]} 26. Rd7 {[%clk 0:01:05]}  Rf8 {[%clk 0:01:37]} 27. Rfd1 {[%clk 0:00:52]}  Qxe5 {[%clk 0:01:26]} 28. Rxf7 {[%clk 0:00:47]}  Rf4 {[%clk 0:01:14]} 29. Rxf8+ {[%clk 0:00:14]}  Rxf8 {[%clk 0:01:15]} 30. Qb7 {[%clk 0:00:14]}  Qf6 {[%clk 0:01:13]} 31. f3 {[%clk 0:00:11]}  g5 {[%clk 0:01:07]} 32. Qxa7 {[%clk 0:00:11]}  g4 {[%clk 0:01:08]} 33. Qxb6 {[%clk 0:00:04]}  gxf3 {[%clk 0:01:07]} 34. Qf2 {[%clk 0:00:03]}  Qg5 {[%clk 0:00:51]} 35. a4 {[%clk 0:00:01]}  Rf5 {[%clk 0:00:45]} 36. Rb1 {[%clk 0:00:01]}  Qf4 {[%clk 0:00:33]} 37. gxf3 {[%clk 0:00:01]}  Rg5+ {[%clk 0:00:33]} 38. Kf1 {[%clk 0:00:01]}  Rh5 {[%clk 0:00:34]} 39. Qg2+ {[%clk 0:00:01]}  Kf8 {[%clk 0:00:33]} 40. Qg7+ {[%clk 0:00:01]}  Ke8 {[%clk 0:00:34]} 41. Qg8+ {[%clk 0:00:02]}  Kd7 {[%clk 0:00:33]} 42. Rb7+ {[%clk 0:00:02]}  Kc6 {[%clk 0:00:33]} 43. Qc8+ {[%clk 0:00:03]}  Kd5 {[%clk 0:00:34]} 44. Rb5+ {[%clk 0:00:03]}  Kd4 {[%clk 0:00:34]} 45. Qd7+ {[%clk 0:00:03]}  Kc3 {[%clk 0:00:32]} 46. Qc6+ {[%clk 0:00:03]}  Kd2 {[%clk 0:00:29]} 47. Rb2+ {[%clk 0:00:03]}  Kd3 {[%clk 0:00:29]} 48. Rb3+ {[%clk 0:00:03]}  Kd4 {[%clk 0:00:26]} 49. Rb4+ {[%clk 0:00:03]}  Ke3 {[%clk 0:00:26]} 50. Rxf4 {[%clk 0:00:03]}  Rb5 {[%clk 0:00:26]} 1-0


[Site "https://www.chess.com"]

[Event "Titled Tuesday Blitz March 15 Late 2022"]
[White "Thavandiran, Shiyam"]
[Black "Kokoszczynski, Jan"]
[WhiteFideId "2605058"]
[BlackFideId "1174460"]
[WhiteElo "2357"]
[BlackElo "2163"]
[Result "0-1"]
[Round "10"]
[TimeControl "180+1"]
[Date "2022.03.15"]
[WhiteClock "0:00:25"]
[BlackClock "0:00:07"]

1. e4 {[%clk 0:02:57]}  e5 {[%clk 0:02:58]} 2. Bc4 {[%clk 0:02:56]}  Nf6 {[%clk 0:02:52]} 3. d3 {[%clk 0:02:56]}  c6 {[%clk 0:02:52]} 4. Nf3 {[%clk 0:02:57]}  d5 {[%clk 0:02:52]} 5. Bb3 {[%clk 0:02:57]}  Bb4+ {[%clk 0:02:52]} 6. Bd2 {[%clk 0:02:56]}  Bd6 {[%clk 0:02:18]} 7. Nc3 {[%clk 0:02:46]}  d4 {[%clk 0:02:11]} 8. Ne2 {[%clk 0:02:46]}  a5 {[%clk 0:02:06]} 9. a3 {[%clk 0:02:43]}  Nbd7 {[%clk 0:02:06]} 10. O-O {[%clk 0:02:36]}  Nc5 {[%clk 0:02:06]} 11. Ba2 {[%clk 0:02:36]}  Be6 {[%clk 0:02:07]} 12. Ng3 {[%clk 0:02:14]}  Bxa2 {[%clk 0:01:54]} 13. Rxa2 {[%clk 0:02:14]}  Ne6 {[%clk 0:01:54]} 14. Nf5 {[%clk 0:02:13]}  g6 {[%clk 0:01:50]} 15. Nh6 {[%clk 0:02:04]}  Nh5 {[%clk 0:01:37]} 16. g3 {[%clk 0:01:54]}  Qc7 {[%clk 0:01:25]} 17. c3 {[%clk 0:01:47]}  c5 {[%clk 0:01:16]} 18. cxd4 {[%clk 0:01:40]}  Nxd4 {[%clk 0:01:08]} 19. Nxd4 {[%clk 0:01:11]}  exd4 {[%clk 0:00:56]} 20. Qa4+ {[%clk 0:01:08]}  Qd7 {[%clk 0:00:54]} 21. Qxd7+ {[%clk 0:01:07]}  Kxd7 {[%clk 0:00:55]} 22. Nxf7 {[%clk 0:01:08]}  Rhf8 {[%clk 0:00:55]} 23. Nxd6 {[%clk 0:01:07]}  Kxd6 {[%clk 0:00:56]} 24. Raa1 {[%clk 0:01:05]}  Rf3 {[%clk 0:00:51]} 25. Rad1 {[%clk 0:01:01]}  Rxd3 {[%clk 0:00:50]} 26. g4 {[%clk 0:01:01]}  Rxd2 {[%clk 0:00:45]} 27. Rxd2 {[%clk 0:01:02]}  Nf4 {[%clk 0:00:45]} 28. b4 {[%clk 0:00:59]}  axb4 {[%clk 0:00:41]} 29. axb4 {[%clk 0:00:59]}  b6 {[%clk 0:00:40]} 30. bxc5+ {[%clk 0:00:59]}  bxc5 {[%clk 0:00:41]} 31. f3 {[%clk 0:00:57]}  d3 {[%clk 0:00:25]} 32. Kf2 {[%clk 0:00:52]}  Ke5 {[%clk 0:00:20]} 33. Ke3 {[%clk 0:00:49]}  c4 {[%clk 0:00:16]} 34. Rc1 {[%clk 0:00:48]}  Rc8 {[%clk 0:00:17]} 35. Rc3 {[%clk 0:00:46]}  Rc5 {[%clk 0:00:17]} 36. h4 {[%clk 0:00:44]}  h6 {[%clk 0:00:16]} 37. Ra2 {[%clk 0:00:42]}  g5 {[%clk 0:00:16]} 38. hxg5 {[%clk 0:00:42]}  hxg5 {[%clk 0:00:17]} 39. Ra8 {[%clk 0:00:40]}  Ng2+ {[%clk 0:00:17]} 40. Kd2 {[%clk 0:00:39]}  Kf4 {[%clk 0:00:17]} 41. Rf8+ {[%clk 0:00:39]}  Kg3 {[%clk 0:00:17]} 42. Rf5 {[%clk 0:00:39]}  Rc6 {[%clk 0:00:15]} 43. e5 {[%clk 0:00:38]}  Nf4 {[%clk 0:00:15]} 44. Rxg5 {[%clk 0:00:38]}  Kxf3 {[%clk 0:00:15]} 45. Rg8 {[%clk 0:00:37]}  Nd5 {[%clk 0:00:09]} 46. Ra3 {[%clk 0:00:33]}  Ke4 {[%clk 0:00:08]} 47. Re8 {[%clk 0:00:31]}  c3+ {[%clk 0:00:08]} 48. Kc1 {[%clk 0:00:26]}  c2 {[%clk 0:00:06]} 49. Rd8 {[%clk 0:00:24]}  d2+ {[%clk 0:00:06]} 50. Kxd2 {[%clk 0:00:25]}  c1=Q+ {[%clk 0:00:07]} 51. Ke2 {[%clk 0:00:25]}  Rc2# {[%clk 0:00:07]} 0-1


[Site "https://www.chess.com"]

[Event "Titled Tuesday Blitz March 15 Late 2022"]
[White "Yedidia, Daniel"]
[Black "Janturin, Artur"]
[WhiteFideId "30905907"]
[BlackFideId "4130022"]
[WhiteElo "2502"]
[BlackElo "2367"]
[Result "0-1"]
[Round "10"]
[TimeControl "180+1"]
[Date "2022.03.16"]
[WhiteClock "0:00:43"]
[BlackClock "0:00:11"]

1. d4 {[%clk 0:02:53]}  e6 {[%clk 0:02:59]} 2. c4 {[%clk 0:02:53]}  b6 {[%clk 0:02:59]} 3. Nc3 {[%clk 0:02:49]}  Bb7 {[%clk 0:02:58]} 4. f3 {[%clk 0:02:50]}  Bb4 {[%clk 0:02:57]} 5. Qb3 {[%clk 0:02:50]}  a5 {[%clk 0:02:56]} 6. Be3 {[%clk 0:02:48]}  f5 {[%clk 0:02:45]} 7. Bf2 {[%clk 0:02:48]}  Nf6 {[%clk 0:02:45]} 8. a3 {[%clk 0:02:48]}  a4 {[%clk 0:02:37]} 9. Qc2 {[%clk 0:02:41]}  Bxc3+ {[%clk 0:02:36]} 10. Qxc3 {[%clk 0:02:41]}  O-O {[%clk 0:02:33]} 11. e3 {[%clk 0:02:41]}  d6 {[%clk 0:02:32]} 12. Bd3 {[%clk 0:02:41]}  Nbd7 {[%clk 0:02:33]} 13. Ne2 {[%clk 0:02:41]}  Qe7 {[%clk 0:02:32]} 14. O-O {[%clk 0:02:41]}  g6 {[%clk 0:02:27]} 15. Bh4 {[%clk 0:02:29]}  Qg7 {[%clk 0:02:25]} 16. Rae1 {[%clk 0:02:23]}  e5 {[%clk 0:02:14]} 17. Bf2 {[%clk 0:02:11]}  e4 {[%clk 0:02:11]} 18. fxe4 {[%clk 0:02:09]}  Bxe4 {[%clk 0:01:56]} 19. Nf4 {[%clk 0:02:06]}  Rae8 {[%clk 0:01:44]} 20. d5 {[%clk 0:02:01]}  Bxd3 {[%clk 0:01:39]} 21. Qxd3 {[%clk 0:02:00]}  Nc5 {[%clk 0:01:39]} 22. Qd4 {[%clk 0:02:00]}  Nfe4 {[%clk 0:01:35]} 23. Qxg7+ {[%clk 0:01:58]}  Kxg7 {[%clk 0:01:34]} 24. Re2 {[%clk 0:01:58]}  Re7 {[%clk 0:01:24]} 25. Be1 {[%clk 0:01:53]}  Rfe8 {[%clk 0:01:17]} 26. Rf3 {[%clk 0:01:53]}  Kf6 {[%clk 0:01:04]} 27. h3 {[%clk 0:01:49]}  g5 {[%clk 0:01:01]} 28. Nh5+ {[%clk 0:01:47]}  Kg6 {[%clk 0:01:01]} 29. Ng3 {[%clk 0:01:46]}  Nxg3 {[%clk 0:00:55]} 30. Bxg3 {[%clk 0:01:45]}  Re4 {[%clk 0:00:47]} 31. Ref2 {[%clk 0:01:36]}  Rf8 {[%clk 0:00:46]} 32. Rc2 {[%clk 0:01:34]}  h5 {[%clk 0:00:41]} 33. Be1 {[%clk 0:01:34]}  g4 {[%clk 0:00:38]} 34. hxg4 {[%clk 0:01:31]}  hxg4 {[%clk 0:00:39]} 35. Rg3 {[%clk 0:01:30]}  Rfe8 {[%clk 0:00:33]} 36. Re2 {[%clk 0:01:02]}  Rxc4 {[%clk 0:00:28]} 37. e4 {[%clk 0:01:00]}  Rcxe4 {[%clk 0:00:23]} 38. Rxe4 {[%clk 0:00:59]}  Rxe4 {[%clk 0:00:24]} 39. Bc3 {[%clk 0:00:59]}  Kg5 {[%clk 0:00:19]} 40. Bd2+ {[%clk 0:00:58]}  f4 {[%clk 0:00:18]} 41. Rc3 {[%clk 0:00:58]}  Kf5 {[%clk 0:00:17]} 42. Rc2 {[%clk 0:00:53]}  Re2 {[%clk 0:00:16]} 43. Kf1 {[%clk 0:00:53]}  f3 {[%clk 0:00:15]} 44. gxf3 {[%clk 0:00:49]}  gxf3 {[%clk 0:00:16]} 45. b4 {[%clk 0:00:47]}  axb3 {[%clk 0:00:15]} 46. Rb2 {[%clk 0:00:47]}  Ke4 {[%clk 0:00:15]} 47. a4 {[%clk 0:00:45]}  Kd3 {[%clk 0:00:14]} 48. a5 {[%clk 0:00:44]}  Rxd2 {[%clk 0:00:11]} 49. axb6 {[%clk 0:00:45]}  cxb6 {[%clk 0:00:11]} 50. Rb1 {[%clk 0:00:44]}  b2 {[%clk 0:00:10]} 51. Ke1 {[%clk 0:00:43]}  Kc2 {[%clk 0:00:08]} 52. Rxb2+ {[%clk 0:00:42]}  Kxb2 {[%clk 0:00:08]} 53. Kxd2 {[%clk 0:00:42]}  b5 {[%clk 0:00:09]} 54. Ke3 {[%clk 0:00:43]}  b4 {[%clk 0:00:10]} 55. Kxf3 {[%clk 0:00:44]}  b3 {[%clk 0:00:10]} 56. Ke3 {[%clk 0:00:45]}  Ka2 {[%clk 0:00:11]} 57. Kd4 {[%clk 0:00:39]}  b2 {[%clk 0:00:12]} 58. Kc3 {[%clk 0:00:39]}  b1=Q {[%clk 0:00:12]} 59. Kd2 {[%clk 0:00:40]}  Qb3 {[%clk 0:00:11]} 60. Kc1 {[%clk 0:00:40]}  Qb2+ {[%clk 0:00:11]} 61. Kd1 {[%clk 0:00:40]}  Kb3 {[%clk 0:00:11]} 62. Ke1 {[%clk 0:00:41]}  Kc3 {[%clk 0:00:11]} 63. Kf1 {[%clk 0:00:42]}  Kd3 {[%clk 0:00:12]} 64. Ke1 {[%clk 0:00:43]}  Qe2# {[%clk 0:00:11]} 0-1


[Site "https://www.chess.com"]

[Event "Titled Tuesday Blitz March 15 Late 2022"]
[White "Albuquerque Junior,Wellington S."]
[Black "Lehtosaari, Mauri"]
[WhiteFideId "2151480"]
[BlackFideId "501999"]
[WhiteElo "2042"]
[BlackElo "2452"]
[Result "0-1"]
[Round "11"]
[TimeControl "180+1"]
[Date "2022.03.16"]
[WhiteClock "0:00:03"]
[BlackClock "0:00:05"]

1. c4 {[%clk 0:03:00]}  c6 {[%clk 0:03:00]} 2. Nf3 {[%clk 0:02:52]}  d5 {[%clk 0:03:00]} 3. g3 {[%clk 0:02:52]}  Nf6 {[%clk 0:03:00]} 4. Bg2 {[%clk 0:02:52]}  Bg4 {[%clk 0:02:53]} 5. O-O {[%clk 0:02:38]}  e6 {[%clk 0:02:48]} 6. b3 {[%clk 0:02:23]}  Nbd7 {[%clk 0:02:45]} 7. Bb2 {[%clk 0:02:23]}  Be7 {[%clk 0:02:41]} 8. d4 {[%clk 0:02:19]}  O-O {[%clk 0:02:40]} 9. Nc3 {[%clk 0:02:16]}  a5 {[%clk 0:02:33]} 10. h3 {[%clk 0:02:15]}  Bh5 {[%clk 0:02:31]} 11. g4 {[%clk 0:02:06]}  Bg6 {[%clk 0:02:31]} 12. Nh4 {[%clk 0:02:06]}  Be4 {[%clk 0:02:15]} 13. Nxe4 {[%clk 0:02:05]}  Nxe4 {[%clk 0:02:14]} 14. Nf3 {[%clk 0:02:05]}  a4 {[%clk 0:02:00]} 15. Qd3 {[%clk 0:01:56]}  h6 {[%clk 0:01:53]} 16. Nd2 {[%clk 0:01:46]}  f5 {[%clk 0:01:36]} 17. gxf5 {[%clk 0:00:58]}  exf5 {[%clk 0:01:34]} 18. Nf3 {[%clk 0:00:52]}  Ndf6 {[%clk 0:01:23]} 19. Ne5 {[%clk 0:00:51]}  a3 {[%clk 0:01:08]} 20. Bc1 {[%clk 0:00:50]}  Bd6 {[%clk 0:00:58]} 21. Bf4 {[%clk 0:00:38]}  Qc7 {[%clk 0:00:39]} 22. f3 {[%clk 0:00:35]}  Ng5 {[%clk 0:00:33]} 23. e3 {[%clk 0:00:15]}  Nh5 {[%clk 0:00:26]} 24. Kf2 {[%clk 0:00:09]}  Nxf4 {[%clk 0:00:20]} 25. exf4 {[%clk 0:00:10]}  Ne6 {[%clk 0:00:21]} 26. Qe3 {[%clk 0:00:09]}  c5 {[%clk 0:00:17]} 27. Rac1 {[%clk 0:00:08]}  cxd4 {[%clk 0:00:15]} 28. Qd2 {[%clk 0:00:07]}  Bc5 {[%clk 0:00:15]} 29. Kg1 {[%clk 0:00:07]}  d3+ {[%clk 0:00:14]} 30. Kh1 {[%clk 0:00:07]}  Nd4 {[%clk 0:00:14]} 31. Qxd3 {[%clk 0:00:06]}  Qd6 {[%clk 0:00:12]} 32. cxd5 {[%clk 0:00:06]}  b6 {[%clk 0:00:12]} 33. b4 {[%clk 0:00:05]}  Qxd5 {[%clk 0:00:09]} 34. bxc5 {[%clk 0:00:05]}  bxc5 {[%clk 0:00:10]} 35. Qc4 {[%clk 0:00:05]}  Qxc4 {[%clk 0:00:10]} 36. Rxc4 {[%clk 0:00:06]}  Rac8 {[%clk 0:00:08]} 37. Rfc1 {[%clk 0:00:06]}  Ne2 {[%clk 0:00:08]} 38. R1c2 {[%clk 0:00:06]}  Ng3+ {[%clk 0:00:07]} 39. Kh2 {[%clk 0:00:06]}  Nh5 {[%clk 0:00:07]} 40. Rxc5 {[%clk 0:00:05]}  Rxc5 {[%clk 0:00:08]} 41. Rxc5 {[%clk 0:00:06]}  Nxf4 {[%clk 0:00:09]} 42. Rc7 {[%clk 0:00:06]}  Rb8 {[%clk 0:00:08]} 43. Kg3 {[%clk 0:00:06]}  Ne2+ {[%clk 0:00:08]} 44. Kf2 {[%clk 0:00:06]}  Nf4 {[%clk 0:00:09]} 45. Rc2 {[%clk 0:00:06]}  g5 {[%clk 0:00:08]} 46. Bf1 {[%clk 0:00:05]}  Re8 {[%clk 0:00:08]} 47. Bc4+ {[%clk 0:00:06]}  Kg7 {[%clk 0:00:08]} 48. Nc6 {[%clk 0:00:05]}  Rc8 {[%clk 0:00:07]} 49. Bb3 {[%clk 0:00:06]}  Nd3+ {[%clk 0:00:06]} 50. Ke3 {[%clk 0:00:06]}  Nf4 {[%clk 0:00:07]} 51. Nd4 {[%clk 0:00:06]}  Re8+ {[%clk 0:00:07]} 52. Kf2 {[%clk 0:00:05]}  Nxh3+ {[%clk 0:00:07]} 53. Kg3 {[%clk 0:00:06]}  Nf4 {[%clk 0:00:08]} 54. Nxf5+ {[%clk 0:00:06]}  Kf6 {[%clk 0:00:07]} 55. Ne3 {[%clk 0:00:05]}  Rxe3 {[%clk 0:00:07]} 56. Rc6+ {[%clk 0:00:05]}  Kg7 {[%clk 0:00:06]} 57. Rc7+ {[%clk 0:00:05]}  Kf6 {[%clk 0:00:05]} 58. Rc6+ {[%clk 0:00:06]}  Ne6 {[%clk 0:00:06]} 59. Kg4 {[%clk 0:00:03]}  Re5 {[%clk 0:00:05]} 60. Kh5 {[%clk 0:00:03]}  Kf5 {[%clk 0:00:05]} 0-1


[Site "https://www.chess.com"]

[Event "Titled Tuesday Blitz March 15 Late 2022"]
[White "Aldokhin, Ivan"]
[Black "Martin Barcelo, Carles"]
[WhiteFideId "24115720"]
[BlackFideId "24561444"]
[WhiteElo "2231"]
[BlackElo "1875"]
[Result "0-1"]
[Round "11"]
[TimeControl "180+1"]
[Date "2022.03.15"]
[WhiteClock "0:00:04"]
[BlackClock "0:00:09"]

1. d4 {[%clk 0:03:00]}  Nf6 {[%clk 0:02:55]} 2. c4 {[%clk 0:03:01]}  g6 {[%clk 0:02:55]} 3. Nc3 {[%clk 0:03:01]}  Bg7 {[%clk 0:02:54]} 4. e4 {[%clk 0:03:02]}  d6 {[%clk 0:02:55]} 5. h3 {[%clk 0:03:02]}  O-O {[%clk 0:02:53]} 6. Nf3 {[%clk 0:03:02]}  e5 {[%clk 0:02:46]} 7. d5 {[%clk 0:03:02]}  Nh5 {[%clk 0:02:42]} 8. Nd2 {[%clk 0:03:01]}  Qe8 {[%clk 0:02:37]} 9. g3 {[%clk 0:02:51]}  f5 {[%clk 0:02:36]} 10. Be2 {[%clk 0:02:47]}  Nf6 {[%clk 0:02:35]} 11. g4 {[%clk 0:02:46]}  Na6 {[%clk 0:02:25]} 12. exf5 {[%clk 0:02:11]}  gxf5 {[%clk 0:02:26]} 13. g5 {[%clk 0:02:11]}  Nd7 {[%clk 0:02:20]} 14. Nb3 {[%clk 0:01:56]}  Nac5 {[%clk 0:02:12]} 15. Nxc5 {[%clk 0:01:49]}  Nxc5 {[%clk 0:02:13]} 16. Be3 {[%clk 0:01:48]}  e4 {[%clk 0:02:00]} 17. Qd2 {[%clk 0:01:25]}  Be5 {[%clk 0:01:15]} 18. O-O-O {[%clk 0:01:21]}  f4 {[%clk 0:01:12]} 19. Bxc5 {[%clk 0:01:17]}  Bxc3 {[%clk 0:01:08]} 20. Qxc3 {[%clk 0:01:12]}  dxc5 {[%clk 0:01:08]} 21. d6 {[%clk 0:00:52]}  cxd6 {[%clk 0:01:00]} 22. Rxd6 {[%clk 0:00:46]}  Qe7 {[%clk 0:00:55]} 23. Rf6 {[%clk 0:00:35]}  f3 {[%clk 0:00:47]} 24. Bd1 {[%clk 0:00:35]}  Bf5 {[%clk 0:00:43]} 25. Rg1 {[%clk 0:00:24]}  Rae8 {[%clk 0:00:36]} 26. Ba4 {[%clk 0:00:19]}  Rd8 {[%clk 0:00:30]} 27. Bc2 {[%clk 0:00:18]}  Rd4 {[%clk 0:00:25]} 28. Re1 {[%clk 0:00:17]}  Rxf6 {[%clk 0:00:23]} 29. gxf6 {[%clk 0:00:17]}  Qxf6 {[%clk 0:00:24]} 30. Rg1+ {[%clk 0:00:16]}  Bg6 {[%clk 0:00:22]} 31. Qe3 {[%clk 0:00:14]}  Rxc4 {[%clk 0:00:20]} 32. Qb3 {[%clk 0:00:14]}  Qf7 {[%clk 0:00:15]} 33. Kb1 {[%clk 0:00:12]}  a6 {[%clk 0:00:15]} 34. Qe3 {[%clk 0:00:11]}  b5 {[%clk 0:00:15]} 35. Bxe4 {[%clk 0:00:09]}  Qe6 {[%clk 0:00:10]} 36. Bxg6 {[%clk 0:00:08]}  Qxe3 {[%clk 0:00:10]} 37. Bxh7+ {[%clk 0:00:07]}  Kxh7 {[%clk 0:00:10]} 38. fxe3 {[%clk 0:00:08]}  Re4 {[%clk 0:00:08]} 39. Rf1 {[%clk 0:00:05]}  Rxe3 {[%clk 0:00:08]} 40. Kc2 {[%clk 0:00:05]}  Kg6 {[%clk 0:00:07]} 41. a3 {[%clk 0:00:04]}  Kf5 {[%clk 0:00:07]} 42. Kd2 {[%clk 0:00:04]}  Re2+ {[%clk 0:00:07]} 43. Kd3 {[%clk 0:00:04]}  Kf4 {[%clk 0:00:08]} 44. b3 {[%clk 0:00:04]}  Rb2 {[%clk 0:00:07]} 45. Kc3 {[%clk 0:00:04]}  Rh2 {[%clk 0:00:08]} 46. b4 {[%clk 0:00:03]}  cxb4+ {[%clk 0:00:07]} 47. axb4 {[%clk 0:00:04]}  Rxh3 {[%clk 0:00:08]} 48. Kd3 {[%clk 0:00:04]}  Rh2 {[%clk 0:00:08]} 49. Rg1 {[%clk 0:00:04]}  Rb2 {[%clk 0:00:07]} 50. Rg8 {[%clk 0:00:03]}  Rxb4 {[%clk 0:00:07]} 51. Kc3 {[%clk 0:00:03]}  Rc4+ {[%clk 0:00:07]} 52. Kd3 {[%clk 0:00:03]}  Ra4 {[%clk 0:00:07]} 53. Rh8 {[%clk 0:00:04]}  Ra3+ {[%clk 0:00:07]} 54. Kd2 {[%clk 0:00:04]}  Ra2+ {[%clk 0:00:08]} 55. Kc3 {[%clk 0:00:04]}  Ke3 {[%clk 0:00:08]} 56. Kb3 {[%clk 0:00:04]}  Rd2 {[%clk 0:00:08]} 57. Re8+ {[%clk 0:00:05]}  Kf2 {[%clk 0:00:08]} 58. Kc3 {[%clk 0:00:05]}  Re2 {[%clk 0:00:08]} 59. Rf8 {[%clk 0:00:06]}  Ra2 {[%clk 0:00:08]} 60. Kb3 {[%clk 0:00:06]}  Re2 {[%clk 0:00:08]} 61. Rg8 {[%clk 0:00:06]}  Kf1 {[%clk 0:00:08]} 62. Kc3 {[%clk 0:00:07]}  f2 {[%clk 0:00:08]} 63. Rh8 {[%clk 0:00:04]}  Ra2 {[%clk 0:00:08]} 64. Kb3 {[%clk 0:00:04]}  Re2 {[%clk 0:00:07]} 65. Rg8 {[%clk 0:00:04]}  Re1 {[%clk 0:00:07]} 66. Kc2 {[%clk 0:00:04]}  Ke2 {[%clk 0:00:07]} 67. Re8+ {[%clk 0:00:04]}  Kf3 {[%clk 0:00:07]} 68. Rf8+ {[%clk 0:00:05]}  Ke3 {[%clk 0:00:08]} 69. Re8+ {[%clk 0:00:05]}  Kd4 {[%clk 0:00:08]} 70. Rd8+ {[%clk 0:00:05]}  Kc5 {[%clk 0:00:08]} 71. Rc8+ {[%clk 0:00:06]}  Kb6 {[%clk 0:00:09]} 72. Rd8 {[%clk 0:00:02]}  f1=Q {[%clk 0:00:08]} 73. Rd6+ {[%clk 0:00:03]}  Kc5 {[%clk 0:00:08]} 74. Rd2 {[%clk 0:00:04]}  Rc1+ {[%clk 0:00:08]} 75. Kb2 {[%clk 0:00:04]}  Rb1+ {[%clk 0:00:08]} 76. Kc3 {[%clk 0:00:04]}  Qc4# {[%clk 0:00:09]} 0-1


[Site "https://www.chess.com"]